{"text_format":"1","workbook":"xlsx","n_sheets":35,"sheets":["Инструкция","Обновление","Лог обновления","Выбор субъекта РФ","Титульный","ТБО цены","Ссылки на публикации","Комментарии","Проверка","AllSheetsInThisWorkbook","et_union","TEHSHEET","REESTR_ORG","REESTR_FILTERED","REESTR_MO","modHyperlink","modChange","modfrmReestr","modPROV","modTitleSheetHeaders","modServiceModule","modClassifierValidate","modWindowClipboard","modInfo","modfrmDateChoose","modReestrMO","modDblClick","modUpdTemplMain","modSheetMain01","modSheetMain02","modSheetMain03","modSheetMain04","modSheetMain05","modRegionSelectSub","Паспорт"],"not_rendered":{"charts":0,"images":12,"macros":1,"external_links":0,"defined_names":133,"comments":0,"pivot_tables":0},"unopened":[],"bounds":{"document_bytes":16777216,"sheet_cells":100000,"rows_first":2000,"rows_last":500,"rows_between":2000,"halvings":0,"cell_chars":16384,"cell_head_chars":4096},"cells_cut":0,"cells_raw":0,"read":"whole","date_system":"1900"}

{"sheet":"Инструкция","index":0,"n_rows":37,"n_cols":10,"rows_kept":37,"cut":false,"hidden":false,"merged":[[3,1,3,9],[20,2,20,7],[21,2,21,7],[22,2,22,4],[6,2,6,7],[7,2,7,7],[8,2,8,7],[9,2,9,7],[17,2,17,7],[18,2,18,7],[19,2,19,7],[34,2,34,3],[34,4,34,7],[23,2,23,3],[23,4,23,7],[24,2,24,3],[24,4,24,7],[26,2,26,3],[26,4,26,7],[32,4,32,7],[35,4,35,7],[31,2,31,4],[25,2,25,3],[25,4,25,7],[36,2,36,3],[36,4,36,7],[27,2,27,3],[27,4,27,7],[33,2,33,3],[33,4,33,7],[28,2,28,3],[28,4,28,7],[29,2,29,3],[29,4,29,7],[35,2,35,3],[32,2,32,3]]}
[]
[null,null,null,null,null,null,null,null,null,"Код шаблона: JKH.OPEN.INFO.PRICE.TBO"]
[null,null,null,null,null,null,null,null,null,{"$f":"\"Версия \" & GetVersion()","v":"Версия 4.4"}]
[null,"Инструкция по заполнению шаблона"]
[]
[]
[null,null,"Технические требования:\n\n• макросы во время работы должны быть включены \n\n"]
[null,null,"• на рабочем месте должен быть установлен MS Office 2003, 2007, 2010 x86 с полной версией MS Excel"]
[null,null,"• макросы во время работы должны быть включены "]
[null,null,"• для корректной работы шаблона требуется выбрать низкий уровень безопасности\n(В меню MS Excel 2003: Сервис ¦ Макрос ¦ Безопасность ¦ выбрать нижний пункт «Низкая безопасность» ¦ «OK»)\n(В MS Excel 2007 после открытия файла шаблона нажать на кнопку «Параметры…» в строке «Предупреждение системы безопасности», далее выбрать «Включить это содержимое» ¦ «OK»)"]
[]
[null,null,null,"●","голубой – ячейки, обязательные для заполнения;"]
[null,null,null,"●","жёлтый – ячейки, предназначенные для заполнения;"]
[null,null,null,"●","зелёный – ячейки с формулами и константами. "]
[]
[null,null,null,null,"Пояснение к заполнению (необходимо нажать один раз)."]
[]
[null,null,"Шаблон может быть сохранен на любом этапе заполнения!"]
[null,null,"• При сохранении шаблона осуществляется проверка на наличие и корректность (например, КПП – 9 цифр) обязательных параметров на листах. "]
[null,null,"• Если какая-то ячейка не удовлетворяет условию проверки, на лист «Проверка» добавляется гиперссылка на данную ячейку и причина, по которой шаблон не будет загружен в хранилище данных. "]
[null,null,"• В колонке «Статус ошибки» для каждого сообщения возможны 2 значения: ошибка и предупреждение. "]
[null,null,"• При наличии сообщений со статусом «Ошибка» шаблон будет отклонён системой, сообщения со статусом «Предупреждение» носят информационный характер, и такой шаблон будет принят системой."]
[null,null,"Организационно-технические консультации:"]
[null,null,"ФИО:"]
[null,null,"телефон:"]
[null,null,"e-mail:"]
[null,null,"WEB-сайт:"]
[null,null,"Комментарий"]
[null,null,"Дистрибутивы:",null,"Для устранения проблем с MS Excel (например, \"Compile error in hidden module\") воспользуйтесь пакетами библиотек: "]
[null,null,"Дистрибутивы (ссылка):",null,"http://eias.ru/?page=show_distrs"]
[]
[null,null,"Консультации по методологии заполнения форм:"]
[null,null,"ФИО:"]
[null,null,"телефон:"]
[null,null,"e-mail:"]
[null,null,"WEB-сайт:"]
[null,null,"Комментарий"]

{"sheet":"Обновление","index":1,"n_rows":24,"n_cols":15,"rows_kept":24,"cut":false,"hidden":true,"merged":[[1,14,1,16],[2,2,2,15],[23,2,23,7],[23,8,23,15]]}
[]
[null,null,null,null,null,null,null,null,null,null,null,null,null,null,{"$f":"version","v":"Версия 4.4"}]
[null,null,"Инструкция по обновлению шаблона"]
[]
[]
[]
[]
[]
[]
[]
[]
[]
[]
[]
[]
[]
[]
[]
[]
[]
[]
[]
[]
[null,null,"Если компьютер имеет подключение к Интернет, можно автоматически проверять наличие доступных обновлений. Выберите способ оповещения о наличии обновлений для шаблона:"]

{"sheet":"Лог обновления","index":2,"n_rows":15,"n_cols":3,"rows_kept":15,"cut":false,"hidden":true,"merged":[]}
["Дата/Время","Сообщение","Статус"]
["11/28/2012  3:17:03 PM","Проверка доступных обновлений...","Информация"]
["11/28/2012  3:17:04 PM","Версия шаблона 4.4 актуальна, обновление не требуется","Информация"]
["11/28/2012  3:17:07 PM","Проверка доступных обновлений...","Информация"]
["11/28/2012  3:17:08 PM","Версия шаблона 4.4 актуальна, обновление не требуется","Информация"]
["12/14/2012  11:32:29 AM","Проверка доступных обновлений...","Информация"]
["12/14/2012  11:32:30 AM","Версия шаблона 4.4 актуальна, обновление не требуется","Информация"]
["12/14/2012  12:00:45 PM","Проверка доступных обновлений...","Информация"]
["12/14/2012  12:00:46 PM","Версия шаблона 4.4 актуальна, обновление не требуется","Информация"]
["12/14/2012  12:14:54 PM","Проверка доступных обновлений...","Информация"]
["12/14/2012  12:14:55 PM","Версия шаблона 4.4 актуальна, обновление не требуется","Информация"]
["12/14/2012  2:37:42 PM","Проверка доступных обновлений...","Информация"]
["12/14/2012  2:37:43 PM","Версия шаблона 4.4 актуальна, обновление не требуется","Информация"]
["12/14/2012  3:11:23 PM","Проверка доступных обновлений...","Информация"]
["12/14/2012  3:11:24 PM","Версия шаблона 4.4 актуальна, обновление не требуется","Информация"]

{"sheet":"Выбор субъекта РФ","index":3,"n_rows":3,"n_cols":6,"rows_kept":3,"cut":false,"hidden":true,"merged":[[2,5,2,8],[2,3,2,4]]}
[]
[null,null,null,null,null,69]
[null,null,null,"Субъект РФ",null,"Ставропольский край"]

{"sheet":"Титульный","index":4,"n_rows":57,"n_cols":9,"rows_kept":57,"cut":false,"hidden":false,"merged":[[6,4,6,5],[48,4,48,6],[49,4,49,5],[27,4,27,5],[3,2,3,8],[23,4,23,5],[25,4,25,5],[22,4,22,5],[20,4,20,5],[10,4,10,6],[11,4,11,5],[56,4,56,5],[41,4,41,5],[8,4,8,5],[14,4,14,5],[17,4,17,6],[18,4,18,5],[46,4,46,5],[53,4,53,5],[12,4,12,5],[33,5,33,6],[52,4,52,6],[29,4,29,5],[35,4,36,4],[40,4,40,6],[32,4,32,6],[54,4,54,5],[55,4,55,5],[42,4,42,5],[50,4,50,5],[44,4,44,6],[45,4,45,5]]}
[{"$f":"region_name","v":"Ставропольский край"},null,{"$f":"org&\"_INN:\"&inn&\"_KPP:\"&kpp","v":"ООО \"Арго\"_INN:2626005270_KPP:262601001"}]
[{"$f":"IF(org=\"\",\"Не определено\",org)","v":"ООО \"Арго\""},{"$f":"IF(inn=\"\",\"Не определено\",inn)","v":"2626005270"},null,null,null,null,null,null,{"$f":"codeTemplate","v":"Код шаблона: JKH.OPEN.INFO.PRICE.TBO"}]
[null,null,null,null,null,null,null,null,{"$f":"version","v":"Версия 4.4"}]
[{"$f":"IF(fil=\"\",\"Не определено\",fil)","v":"Не определено"},{"$f":"IF(kpp=\"\",\"Не определено\",kpp)","v":"262601001"},"Показатели подлежащие раскрытию в сфере утилизации (захоронения) твердых бытовых отходов (Цены и тарифы)"]
[]
[null,null,null,null,"Создать печатную форму"]
[null,null,null,null,"Субъект РФ",null,"Ставропольский край"]
[]
["L0",null,null,null,"Публикация",null,"на сайте регулирующего органа"]
[]
[null,null,null,null,"Период регулирования"]
[null,null,null,null,"Начало очередного периода регулирования",null,"01.01.2013"]
[null,null,null,null,"Окончание очередного периода регулирования",null,"31.12.2013"]
[]
["L0",null,null,null,"Является ли данное юридическое лицо подразделением (филиалом) другой организации",null,"нет"]
[]
[]
[66,null,null,null,"Дата последнего обновления реестра организаций: 28.11.2012 15:17:18"]
[null,null,null,null,"Наименование организации",null,"ООО \"Арго\""]
[]
[null,null,null,null,"Наименование ПОДРАЗДЕЛЕНИЯ"]
[]
[null,null,null,null,"ИНН организации",null,"2626005270"]
[null,null,null,null,"КПП организации",null,"262601001"]
[]
[null,null,null,null,"Вид деятельности, на которую установлен тариф",null,"Захоронение твердых бытовых отходов"]
[]
[null,null,null,null,"НДС (отметка об учтенном НДС)",null,"отчетность представлена с учетом освобождения от НДС"]
[]
[null,null,null,null,"Организация выполняет инвестиционную программу",null,"нет"]
[]
[]
[null,null,null,null,"Дата последнего обновления реестра МР/МО: 28.11.2012 15:17:20"]
[null,null,null,null,"Муниципальный район, на территории которого оказывается услуга","Муниципальное образование, на территории которого оказывается услуга"]
[null,null,null,null,"Наименование МР","Наименование МО","ОКТМО"]
[null,null,null,null,"Город-курорт Ессентуки","Город-курорт Ессентуки","07710000"]
[null,null,null,null,null,"Добавить МО"]
[null,null,null,null,"Добавить МР"]
[]
[]
[null,null,null,null,"Адрес организации"]
[null,null,null,null,"Юридический адрес:",null,"357601, Ставропольский край, г. Ессентуки, ул. Вокзавльная, 57 б"]
[null,null,null,null,"Почтовый адрес:",null,"357601, Ставропольский край, г. Ессентуки, ул. Вокзавльная, 57 б"]
[]
[null,null,null,null,"Руководитель"]
[null,null,null,null,"Фамилия, имя, отчество:",null,"Богатиков Константин Сергеевич"]
[null,null,null,null,"(код) номер телефона:",null,"(879-34)7-20-23"]
[]
[null,null,null,null,"Главный бухгалтер"]
[null,null,null,null,"Фамилия, имя, отчество:",null,"Сеник Татьяна Михайловна"]
[null,null,null,null,"(код) номер телефона:",null,"(879-34)7-20-23"]
[]
[null,null,null,null,"Должностное лицо, ответственное за составление формы"]
[null,null,null,null,"Фамилия, имя, отчество:",null,"Лысенко Оксана Викторовна"]
[null,null,null,null,"Должность:",null,"Экономист"]
[null,null,null,null,"(код) номер телефона:",null,"(879-34)7-20-23"]
[null,null,null,null,"e-mail:",null,"argokmv@mail.ru"]

{"sheet":"ТБО цены","index":5,"n_rows":45,"n_cols":20,"rows_kept":45,"cut":false,"hidden":false,"merged":[[11,2,11,17],[12,2,12,17],[17,4,29,4],[17,7,18,7],[15,5,15,8],[16,5,16,8],[17,6,22,6],[30,6,35,6],[21,7,22,7],[23,6,28,6],[23,7,24,7],[25,7,26,7],[27,7,28,7],[19,7,20,7],[34,7,35,7],[17,5,29,5],[32,7,33,7],[37,4,41,4],[37,6,40,6],[30,7,31,7],[30,5,36,5],[37,7,38,7],[30,4,36,4],[37,5,41,5],[39,7,40,7]]}
[]
[]
[]
[]
[]
[]
[]
[]
[]
[null,null,{"$f":"codeTemplate","v":"Код шаблона: JKH.OPEN.INFO.PRICE.TBO"}]
[]
[null,null,"Информация о ценах (тарифах) на регулируемые товары и услуги и надбавках к этим ценам (тарифам)*"]
[null,null,{"$f":"IF(org=\"\",\"\",IF(fil=\"\",org,org & \" (\" & fil & \")\")) & IF(OR(godStart=\"\",godEnd=\"\"),\"\",\", \"&YEAR(godStart)& \"-\" & YEAR(godEnd)&\" гг.\")","v":"ООО \"Арго\", 2013-2013 гг."}]
[]
[]
[null,null,null,null,"№ п/п","Наименование показателя",null,null,null,"Единица измерения","Значение","Дата ввода","Срок действия","Постановление (дата)","Постановление (номер)","Наименование регулирующего органа, принявшего решение об утверждении цен","Источник официального опубликования органом, принявшим решение об утверждении цены (тарифа, надбавки)"]
[null,null,null,null,1,2,null,null,null,3,4,5,6,"7.1","7.2",8,9]
[null,null,null,null,"1","Утвержденные тарифы на утилизацию (захоронение) твердых бытовых отходов","1.1","для населения","по объему","руб./куб.м.",null,null,null,null,null,null,null,null,null,{"$f":"IF(K18=\"\",0,1)","v":0}]
[null,null,null,null,null,null,null,null,"по тоннажу","руб./тонну",442.06,"01.01.2013","30.06.2013","20.11.2012","№ 57/2","Региональная тарифная комиссия Ставропольского края","Общественно - политическая газета \"Ставропольская правда\" от 30.11.12г. № 311-312"]
[null,null,null,null,null,null,null,"для бюджетных потребителей","по объему","руб./куб.м.",null,null,null,null,null,null,null,null,null,{"$f":"IF(K20=\"\",0,1)","v":0}]
[null,null,null,null,null,null,null,null,"по тоннажу","руб./тонну",442.06,"01.01.2013","30.06.2013","20.11.2012","№ 57/2","Региональная тарифная комиссия Ставропольского края","Общественно - политическая газета \"Ставропольская правда\" от 30.11.12г. № 311-312"]
[null,null,null,null,null,null,null,"для прочих потребителей","по объему","руб./куб.м."]
[null,null,null,null,null,null,null,null,"по тоннажу","руб./тонну",442.06,"01.01.2013","30.06.2013","20.11.2012","№ 57/2","Региональная тарифная комиссия Ставропольского края","Общественно - политическая газета \"Ставропольская правда\" от 30.11.12г. № 311-312",null,null,{"$f":"IF(K23=\"\",0,1)","v":1}]
[null,null,null,"Удалить запись",null,null,"1.2","для населения","по объему","руб./куб.м.",null,null,null,null,null,null,null,null,{"$f":"IF(K24=\"\",0,1)","v":0}]
[null,null,null,null,null,null,null,null,"по тоннажу","руб./тонну",479.6,"01.07.2013","31.12.2013","20.11.2012","№ 57/2","Региональная тарифная комиссия Ставропольского края","Общественно - политическая газета \"Ставропольская правда\" от 30.11.12г. № 311-312"]
[null,null,null,null,null,null,null,"для бюджетных потребителей","по объему","руб./куб.м.",null,null,null,null,null,null,null,null,{"$f":"IF(K26=\"\",0,1)","v":0}]
[null,null,null,null,null,null,null,null,"по тоннажу","руб./тонну",479.6,"01.07.2013","31.12.2013","20.11.2012","№ 57/2","Региональная тарифная комиссия Ставропольского края","Общественно - политическая газета \"Ставропольская правда\" от 30.11.12г. № 311-312"]
[null,null,null,null,null,null,null,"для прочих потребителей","по объему","руб./куб.м."]
[null,null,null,null,null,null,null,null,"по тоннажу","руб./тонну",479.6,"01.07.2013","31.12.2013","20.11.2012","№ 57/2","Региональная тарифная комиссия Ставропольского края","Общественно - политическая газета \"Ставропольская правда\" от 30.11.12г. № 311-312",null,{"$f":"IF(K29=\"\",0,1)","v":1}]
[null,null,null,null,null,null,null,"Добавить запись"]
[null,null,null,null,"2","Утвержденная надбавка к ценам (тарифам) на утилизацию (захоронение) твердых бытовых отходов для потребителей","2.1","для населения","по объему","руб./куб.м.",null,null,null,null,null,null,null,null,null,{"$f":"IF(K31=\"\",0,1)","v":0}]
[null,null,null,null,null,null,null,null,"по тоннажу","руб./тонну"]
[null,null,null,null,null,null,null,"для бюджетных потребителей","по объему","руб./куб.м.",null,null,null,null,null,null,null,null,null,{"$f":"IF(K33=\"\",0,1)","v":0}]
[null,null,null,null,null,null,null,null,"по тоннажу","руб./тонну"]
[null,null,null,null,null,null,null,"для прочих потребителей","по объему","руб./куб.м.",null,null,null,null,null,null,null,null,null,{"$f":"IF(K35=\"\",0,1)","v":0}]
[null,null,null,null,null,null,null,null,"по тоннажу","руб./тонну"]
[null,null,null,null,null,null,null,"Добавить запись"]
[null,null,null,null,"3","Утвержденная надбавка к тарифам регулируемых организаций на утилизацию (захоронение) твердых бытовых отходов","3.1","для бюджетных потребителей","по объему","руб./куб.м.",null,null,null,null,null,null,null,null,null,{"$f":"IF(K38=\"\",0,1)","v":0}]
[null,null,null,null,null,null,null,null,"по тоннажу","руб./тонну"]
[null,null,null,null,null,null,null,"для прочих потребителей","по объему","руб./куб.м.",null,null,null,null,null,null,null,null,null,{"$f":"IF(K40=\"\",0,1)","v":0}]
[null,null,null,null,null,null,null,null,"по тоннажу","руб./тонну"]
[null,null,null,null,null,null,null,"Добавить запись"]
[]
[]
[null,null,null,null,"*","Раскрывается не позднее 30 дней со дня принятия соответствующего решения об установлении тарифа (надбавки) на очередной период регулирования "]

{"sheet":"Ссылки на публикации","index":6,"n_rows":27,"n_cols":11,"rows_kept":27,"cut":false,"hidden":false,"merged":[[15,4,15,10],[25,5,25,10],[11,2,11,11],[12,2,12,11]]}
[]
[]
[]
[]
[]
[]
[]
[]
[]
[null,null,{"$f":"codeTemplate","v":"Код шаблона: JKH.OPEN.INFO.PRICE.TBO"}]
[]
[null,null,"Ссылки на публикации в других источниках"]
[null,null,{"$f":"IF(org=\"\",\"\",IF(fil=\"\",org,org & \" (\" & fil & \")\")) & IF(OR(godStart=\"\",godEnd=\"\"),\"\",\", \"&YEAR(godStart)& \"-\" & YEAR(godEnd)&\" гг.\")","v":"ООО \"Арго\", 2013-2013 гг."}]
[]
[]
[null,null,null,null,"Указание на официальное печатное издание и (или) адрес сайта в сети Интернет, которые используются для размещения раскрываемой информации *"]
[]
[null,null,null,null,"№ п/п","Содержание пункта","Наименование источника","Дата размещения информации","Номер печатного издания","Дата печатного издания","Адрес сайта в сети Интернет"]
[null,null,null,null,1,{"$f":"E19+1","v":2},"3",4,5,6,7]
[null,null,null,null,1,"Информация о ценах на регулируемые товары и услуги и надбавках к этим ценам **"]
[null,null,null,null,"1.1","Сайт в сети Интернет","Официальный сайт ООО \"Арго\"","14.12.2012","x","x","www.argokmv.ru"]
[null,null,null,null,"1.2","Печатное издание","Общественно - политическая газета \"Ставропольская правда\"","14.12.2012","№325-326","14.12.12г.","x"]
[null,null,"end","end",null,"Добавить запись"]
[]
[]
[null,null,null,null,"*","Источники публикации сообщаются в течение 5 рабочих дней со дня размещения информации на сайте в сети Интернет. Информация раскрывается не позднее 30 дней со дня принятия соответствующего решения об установлении тарифа(надбавки) на очередной период регулирования."]
[null,null,null,null,"**","Информация подлежит публикованию в официальных печатных изданиях (со ссылкой на адрес сайта в сети Интернет)"]

{"sheet":"Комментарии","index":7,"n_rows":13,"n_cols":4,"rows_kept":13,"cut":false,"hidden":false,"merged":[[11,3,11,5],[12,3,12,5]]}
[]
[]
[]
[]
[]
[]
[]
[]
[]
[null,null,null,{"$f":"codeTemplate","v":"Код шаблона: JKH.OPEN.INFO.PRICE.TBO"}]
[]
[null,null,null,"КОММЕНТАРИИ"]
[null,null,null,{"$f":"IF(org=\"\",\"\",IF(fil=\"\",org,org & \" (\" & fil & \")\")) & IF(OR(godStart=\"\",godEnd=\"\"),\"\",\", \"&YEAR(godStart)& \"-\" & YEAR(godEnd)&\" гг.\")","v":"ООО \"Арго\", 2013-2013 гг."}]

{"sheet":"Проверка","index":8,"n_rows":125,"n_cols":7,"rows_kept":125,"cut":false,"hidden":true,"merged":[[9,4,9,6]]}
[]
[]
[]
[]
[]
[]
[]
[null,null,null,null,{"$f":"codeTemplate","v":"Код шаблона: JKH.OPEN.INFO.PRICE.TBO"}]
[]
[null,null,null,null,"Результат проверки"]
[]
[null,null,null,null,"Ссылка","Причина","Статус ошибки"]
[null,null,null,null,"1","2","3"]
[null,null,null,null,"ТБО цены!K18","Не указано значение на листе 'ТБО цены'!","Предупреждение"]
[null,null,null,null,"ТБО цены!L18","Не указано значение на листе 'ТБО цены'!","Предупреждение"]
[null,null,null,null,"ТБО цены!M18","Не указано значение на листе 'ТБО цены'!","Предупреждение"]
[null,null,null,null,"ТБО цены!N18","Не указано значение на листе 'ТБО цены'!","Предупреждение"]
[null,null,null,null,"ТБО цены!O18","Не указано значение на листе 'ТБО цены'!","Предупреждение"]
[null,null,null,null,"ТБО цены!P18","Не указано значение на листе 'ТБО цены'!","Предупреждение"]
[null,null,null,null,"ТБО цены!Q18","Не указано значение на листе 'ТБО цены'!","Предупреждение"]
[null,null,null,null,"ТБО цены!K20","Не указано значение на листе 'ТБО цены'!","Предупреждение"]
[null,null,null,null,"ТБО цены!L20","Не указано значение на листе 'ТБО цены'!","Предупреждение"]
[null,null,null,null,"ТБО цены!M20","Не указано значение на листе 'ТБО цены'!","Предупреждение"]
[null,null,null,null,"ТБО цены!N20","Не указано значение на листе 'ТБО цены'!","Предупреждение"]
[null,null,null,null,"ТБО цены!O20","Не указано значение на листе 'ТБО цены'!","Предупреждение"]
[null,null,null,null,"ТБО цены!P20","Не указано значение на листе 'ТБО цены'!","Предупреждение"]
[null,null,null,null,"ТБО цены!Q20","Не указано значение на листе 'ТБО цены'!","Предупреждение"]
[null,null,null,null,"ТБО цены!K22","Не указано значение на листе 'ТБО цены'!","Предупреждение"]
[null,null,null,null,"ТБО цены!L22","Не указано значение на листе 'ТБО цены'!","Предупреждение"]
[null,null,null,null,"ТБО цены!M22","Не указано значение на листе 'ТБО цены'!","Предупреждение"]
[null,null,null,null,"ТБО цены!N22","Не указано значение на листе 'ТБО цены'!","Предупреждение"]
[null,null,null,null,"ТБО цены!O22","Не указано значение на листе 'ТБО цены'!","Предупреждение"]
[null,null,null,null,"ТБО цены!P22","Не указано значение на листе 'ТБО цены'!","Предупреждение"]
[null,null,null,null,"ТБО цены!Q22","Не указано значение на листе 'ТБО цены'!","Предупреждение"]
[null,null,null,null,"ТБО цены!K24","Не указано значение на листе 'ТБО цены'!","Предупреждение"]
[null,null,null,null,"ТБО цены!L24","Не указано значение на листе 'ТБО цены'!","Предупреждение"]
[null,null,null,null,"ТБО цены!M24","Не указано значение на листе 'ТБО цены'!","Предупреждение"]
[null,null,null,null,"ТБО цены!N24","Не указано значение на листе 'ТБО цены'!","Предупреждение"]
[null,null,null,null,"ТБО цены!O24","Не указано значение на листе 'ТБО цены'!","Предупреждение"]
[null,null,null,null,"ТБО цены!P24","Не указано значение на листе 'ТБО цены'!","Предупреждение"]
[null,null,null,null,"ТБО цены!Q24","Не указано значение на листе 'ТБО цены'!","Предупреждение"]
[null,null,null,null,"ТБО цены!K26","Не указано значение на листе 'ТБО цены'!","Предупреждение"]
[null,null,null,null,"ТБО цены!L26","Не указано значение на листе 'ТБО цены'!","Предупреждение"]
[null,null,null,null,"ТБО цены!M26","Не указано значение на листе 'ТБО цены'!","Предупреждение"]
[null,null,null,null,"ТБО цены!N26","Не указано значение на листе 'ТБО цены'!","Предупреждение"]
[null,null,null,null,"ТБО цены!O26","Не указано значение на листе 'ТБО цены'!","Предупреждение"]
[null,null,null,null,"ТБО цены!P26","Не указано значение на листе 'ТБО цены'!","Предупреждение"]
[null,null,null,null,"ТБО цены!Q26","Не указано значение на листе 'ТБО цены'!","Предупреждение"]
[null,null,null,null,"ТБО цены!K28","Не указано значение на листе 'ТБО цены'!","Предупреждение"]
[null,null,null,null,"ТБО цены!L28","Не указано значение на листе 'ТБО цены'!","Предупреждение"]
[null,null,null,null,"ТБО цены!M28","Не указано значение на листе 'ТБО цены'!","Предупреждение"]
[null,null,null,null,"ТБО цены!N28","Не указано значение на листе 'ТБО цены'!","Предупреждение"]
[null,null,null,null,"ТБО цены!O28","Не указано значение на листе 'ТБО цены'!","Предупреждение"]
[null,null,null,null,"ТБО цены!P28","Не указано значение на листе 'ТБО цены'!","Предупреждение"]
[null,null,null,null,"ТБО цены!Q28","Не указано значение на листе 'ТБО цены'!","Предупреждение"]
[null,null,null,null,"ТБО цены!K31","Не указано значение на листе 'ТБО цены'!","Предупреждение"]
[null,null,null,null,"ТБО цены!L31","Не указано значение на листе 'ТБО цены'!","Предупреждение"]
[null,null,null,null,"ТБО цены!M31","Не указано значение на листе 'ТБО цены'!","Предупреждение"]
[null,null,null,null,"ТБО цены!N31","Не указано значение на листе 'ТБО цены'!","Предупреждение"]
[null,null,null,null,"ТБО цены!O31","Не указано значение на листе 'ТБО цены'!","Предупреждение"]
[null,null,null,null,"ТБО цены!P31","Не указано значение на листе 'ТБО цены'!","Предупреждение"]
[null,null,null,null,"ТБО цены!Q31","Не указано значение на листе 'ТБО цены'!","Предупреждение"]
[null,null,null,null,"ТБО цены!K32","Не указано значение на листе 'ТБО цены'!","Предупреждение"]
[null,null,null,null,"ТБО цены!L32","Не указано значение на листе 'ТБО цены'!","Предупреждение"]
[null,null,null,null,"ТБО цены!M32","Не указано значение на листе 'ТБО цены'!","Предупреждение"]
[null,null,null,null,"ТБО цены!N32","Не указано значение на листе 'ТБО цены'!","Предупреждение"]
[null,null,null,null,"ТБО цены!O32","Не указано значение на листе 'ТБО цены'!","Предупреждение"]
[null,null,null,null,"ТБО цены!P32","Не указано значение на листе 'ТБО цены'!","Предупреждение"]
[null,null,null,null,"ТБО цены!Q32","Не указано значение на листе 'ТБО цены'!","Предупреждение"]
[null,null,null,null,"ТБО цены!K33","Не указано значение на листе 'ТБО цены'!","Предупреждение"]
[null,null,null,null,"ТБО цены!L33","Не указано значение на листе 'ТБО цены'!","Предупреждение"]
[null,null,null,null,"ТБО цены!M33","Не указано значение на листе 'ТБО цены'!","Предупреждение"]
[null,null,null,null,"ТБО цены!N33","Не указано значение на листе 'ТБО цены'!","Предупреждение"]
[null,null,null,null,"ТБО цены!O33","Не указано значение на листе 'ТБО цены'!","Предупреждение"]
[null,null,null,null,"ТБО цены!P33","Не указано значение на листе 'ТБО цены'!","Предупреждение"]
[null,null,null,null,"ТБО цены!Q33","Не указано значение на листе 'ТБО цены'!","Предупреждение"]
[null,null,null,null,"ТБО цены!K34","Не указано значение на листе 'ТБО цены'!","Предупреждение"]
[null,null,null,null,"ТБО цены!L34","Не указано значение на листе 'ТБО цены'!","Предупреждение"]
[null,null,null,null,"ТБО цены!M34","Не указано значение на листе 'ТБО цены'!","Предупреждение"]
[null,null,null,null,"ТБО цены!N34","Не указано значение на листе 'ТБО цены'!","Предупреждение"]
[null,null,null,null,"ТБО цены!O34","Не указано значение на листе 'ТБО цены'!","Предупреждение"]
[null,null,null,null,"ТБО цены!P34","Не указано значение на листе 'ТБО цены'!","Предупреждение"]
[null,null,null,null,"ТБО цены!Q34","Не указано значение на листе 'ТБО цены'!","Предупреждение"]
[null,null,null,null,"ТБО цены!K35","Не указано значение на листе 'ТБО цены'!","Предупреждение"]
[null,null,null,null,"ТБО цены!L35","Не указано значение на листе 'ТБО цены'!","Предупреждение"]
[null,null,null,null,"ТБО цены!M35","Не указано значение на листе 'ТБО цены'!","Предупреждение"]
[null,null,null,null,"ТБО цены!N35","Не указано значение на листе 'ТБО цены'!","Предупреждение"]
[null,null,null,null,"ТБО цены!O35","Не указано значение на листе 'ТБО цены'!","Предупреждение"]
[null,null,null,null,"ТБО цены!P35","Не указано значение на листе 'ТБО цены'!","Предупреждение"]
[null,null,null,null,"ТБО цены!Q35","Не указано значение на листе 'ТБО цены'!","Предупреждение"]
[null,null,null,null,"ТБО цены!K36","Не указано значение на листе 'ТБО цены'!","Предупреждение"]
[null,null,null,null,"ТБО цены!L36","Не указано значение на листе 'ТБО цены'!","Предупреждение"]
[null,null,null,null,"ТБО цены!M36","Не указано значение на листе 'ТБО цены'!","Предупреждение"]
[null,null,null,null,"ТБО цены!N36","Не указано значение на листе 'ТБО цены'!","Предупреждение"]
[null,null,null,null,"ТБО цены!O36","Не указано значение на листе 'ТБО цены'!","Предупреждение"]
[null,null,null,null,"ТБО цены!P36","Не указано значение на листе 'ТБО цены'!","Предупреждение"]
[null,null,null,null,"ТБО цены!Q36","Не указано значение на листе 'ТБО цены'!","Предупреждение"]
[null,null,null,null,"ТБО цены!K38","Не указано значение на листе 'ТБО цены'!","Предупреждение"]
[null,null,null,null,"ТБО цены!L38","Не указано значение на листе 'ТБО цены'!","Предупреждение"]
[null,null,null,null,"ТБО цены!M38","Не указано значение на листе 'ТБО цены'!","Предупреждение"]
[null,null,null,null,"ТБО цены!N38","Не указано значение на листе 'ТБО цены'!","Предупреждение"]
[null,null,null,null,"ТБО цены!O38","Не указано значение на листе 'ТБО цены'!","Предупреждение"]
[null,null,null,null,"ТБО цены!P38","Не указано значение на листе 'ТБО цены'!","Предупреждение"]
[null,null,null,null,"ТБО цены!Q38","Не указано значение на листе 'ТБО цены'!","Предупреждение"]
[null,null,null,null,"ТБО цены!K39","Не указано значение на листе 'ТБО цены'!","Предупреждение"]
[null,null,null,null,"ТБО цены!L39","Не указано значение на листе 'ТБО цены'!","Предупреждение"]
[null,null,null,null,"ТБО цены!M39","Не указано значение на листе 'ТБО цены'!","Предупреждение"]
[null,null,null,null,"ТБО цены!N39","Не указано значение на листе 'ТБО цены'!","Предупреждение"]
[null,null,null,null,"ТБО цены!O39","Не указано значение на листе 'ТБО цены'!","Предупреждение"]
[null,null,null,null,"ТБО цены!P39","Не указано значение на листе 'ТБО цены'!","Предупреждение"]
[null,null,null,null,"ТБО цены!Q39","Не указано значение на листе 'ТБО цены'!","Предупреждение"]
[null,null,null,null,"ТБО цены!K40","Не указано значение на листе 'ТБО цены'!","Предупреждение"]
[null,null,null,null,"ТБО цены!L40","Не указано значение на листе 'ТБО цены'!","Предупреждение"]
[null,null,null,null,"ТБО цены!M40","Не указано значение на листе 'ТБО цены'!","Предупреждение"]
[null,null,null,null,"ТБО цены!N40","Не указано значение на листе 'ТБО цены'!","Предупреждение"]
[null,null,null,null,"ТБО цены!O40","Не указано значение на листе 'ТБО цены'!","Предупреждение"]
[null,null,null,null,"ТБО цены!P40","Не указано значение на листе 'ТБО цены'!","Предупреждение"]
[null,null,null,null,"ТБО цены!Q40","Не указано значение на листе 'ТБО цены'!","Предупреждение"]
[null,null,null,null,"ТБО цены!K41","Не указано значение на листе 'ТБО цены'!","Предупреждение"]
[null,null,null,null,"ТБО цены!L41","Не указано значение на листе 'ТБО цены'!","Предупреждение"]
[null,null,null,null,"ТБО цены!M41","Не указано значение на листе 'ТБО цены'!","Предупреждение"]
[null,null,null,null,"ТБО цены!N41","Не указано значение на листе 'ТБО цены'!","Предупреждение"]
[null,null,null,null,"ТБО цены!O41","Не указано значение на листе 'ТБО цены'!","Предупреждение"]
[null,null,null,null,"ТБО цены!P41","Не указано значение на листе 'ТБО цены'!","Предупреждение"]
[null,null,null,null,"ТБО цены!Q41","Не указано значение на листе 'ТБО цены'!","Предупреждение"]

{"sheet":"AllSheetsInThisWorkbook","index":9,"n_rows":27,"n_cols":2,"rows_kept":27,"cut":false,"hidden":true,"merged":[]}
["Расчетные листы","Скрытые листы"]
["sheetMain00","AllSheetsInThisWorkbook"]
["SHEET_UPDATE_INSTRUCTION","TEHSH_et_union"]
["modUpdTemplLogger","TEHSH_tehsheet"]
["modRegionSelect","TEHSH_reestr_org"]
["sheetMain01","TEHSH_reestr_filter"]
["sheetMain03","TEHSH_reestr_mo"]
["sheetMain04","modHyperlink"]
["sheetMain05","modChange"]
[null,"modfrmReestr"]
[null,"modPROV"]
[null,"modTitleSheetHeaders"]
[null,"modServiceModule"]
[null,"modClassifierValidate"]
[null,"modWindowClipboard"]
[null,"modInfo"]
[null,"modfrmDateChoose"]
[null,"modReestrMO"]
[null,"modDblClick"]
[null,"modUpdTemplMain"]
[null,"modSheetMain01"]
[null,"modSheetMain02"]
[null,"modSheetMain03"]
[null,"modSheetMain04"]
[null,"modSheetMain05"]
[null,"modRegionSelectSub"]
[null,"sheetOld00"]

{"sheet":"et_union","index":10,"n_rows":37,"n_cols":19,"rows_kept":37,"cut":false,"hidden":true,"merged":[[4,4,5,4],[13,6,18,6],[31,6,34,6],[31,7,32,7],[33,7,34,7],[13,7,14,7],[15,7,16,7],[17,7,18,7],[22,6,27,6],[22,7,23,7],[26,7,27,7],[24,7,25,7]]}
[]
["add_MR_range"]
["add_MO_range"]
[]
[]
[null,null,null,null,null,"Добавить МО"]
[]
["add_PRICE_range"]
[]
[]
[]
["add_PRICE_2_range"]
[]
[null,null,null,null,null,null,null,"для населения","по объему","руб./куб.м.",null,null,null,null,null,null,null,null,{"$f":"IF(K14=\"\",0,1)","v":0}]
[null,null,null,null,null,null,null,null,"по тоннажу","руб./тонну"]
[null,null,null,null,null,null,null,"для бюджетных потребителей","по объему","руб./куб.м.",null,null,null,null,null,null,null,null,{"$f":"IF(K16=\"\",0,1)","v":0}]
[null,null,null,null,null,null,null,null,"по тоннажу","руб./тонну"]
[null,null,null,null,null,null,null,"для прочих потребителей","по объему","руб./куб.м."]
[null,null,null,null,null,null,null,null,"по тоннажу","руб./тонну",null,null,null,null,null,null,null,null,{"$f":"IF(K19=\"\",0,1)","v":0}]
[]
["add_PRICE_2_range_2"]
[]
[null,null,null,null,null,null,null,"для населения","по объему","руб./куб.м.",null,null,null,null,null,null,null,null,{"$f":"IF(K23=\"\",0,1)","v":0}]
[null,null,null,null,null,null,null,null,"по тоннажу","руб./тонну"]
[null,null,null,null,null,null,null,"для бюджетных потребителей","по объему","руб./куб.м.",null,null,null,null,null,null,null,null,{"$f":"IF(K25=\"\",0,1)","v":0}]
[null,null,null,null,null,null,null,null,"по тоннажу","руб./тонну"]
[null,null,null,null,null,null,null,"для прочих потребителей","по объему","руб./куб.м."]
[null,null,null,null,null,null,null,null,"по тоннажу","руб./тонну",null,null,null,null,null,null,null,null,{"$f":"IF(K28=\"\",0,1)","v":0}]
[]
["add_PRICE_2_range_3"]
[]
[null,null,null,null,null,null,null,"для бюджетных потребителей","по объему","руб./куб.м.",null,null,null,null,null,null,null,null,{"$f":"IF(K32=\"\",0,1)","v":0}]
[null,null,null,null,null,null,null,null,"по тоннажу","руб./тонну"]
[null,null,null,null,null,null,null,"для прочих потребителей","по объему","руб./куб.м."]
[null,null,null,null,null,null,null,null,"по тоннажу","руб./тонну",null,null,null,null,null,null,null,null,{"$f":"IF(K35=\"\",0,1)","v":0}]
[]
["add_HYPERLINK_range"]

{"sheet":"TEHSHEET","index":11,"n_rows":85,"n_cols":96,"rows_kept":85,"cut":false,"hidden":true,"merged":[[0,10,0,13],[0,15,0,16],[0,26,0,27]]}
["Логика","Года","Единица измерения","Месяц-число","Месяц-текст","Месяц-текст /род.падеж/","День-число","Регионы","НДС /kind_of_NDS/","метод установления тарифа /kind_of_the_method_of_tariff_setting/","Листы",null,null,null,null,"Диапазоны",null,null,"публикация /kind_of_publication/",null,null,null,null,null,null,null,"Диапазоны",null,null,"Вид деятельности, на которую установлен тариф /kind_of_activity/","Вид товара /kind_of_goods/",null,null,null,null,null,null,null,null,null,null,null,null,null,null,null,null,null,null,null,null,null,null,null,null,null,null,null,null,null,null,null,null,null,null,null,null,null,null,null,null,null,null,null,null,null,null,null,null,null,null,null,null,null,null,null,null,null,null,null,null,null,null,null,null,"5.86"]
["да",2006,"тыс.руб.","01","январь","января","01","Алтайский край","отчетность представлена без НДС",null,"sheet_costs_1","sheet_costs_2","sheet_costs_3","sheet_active",null,"method_returns_title","method_returns_pub",null,null,"sheet_costs_1","sheet_costs_2","sheet_costs_3","sheet_active","sheet_publication","sheet_comments",null,"name_source_str","name_source_act",null,"Транспортировка и очистка сточных вод","Техническая вода"]
["нет",2007,"млн.руб.","02","февраль","февраля","02","Амурская область","отчетность представлена с учетом освобождения от НДС","метод экономически обоснованных расходов",-1,2,2,2,null,"True","True",null,"на официальном сайте организации",2,2,2,2,-1,-1,null,34,34,null,"Транспортировка сточных вод","Питьевая вода"]
[null,2008,null,"03","март","марта","03","Архангельская область","отчетность представлена с НДС","метод индексации на основе долгосрочных параметров",2,-1,2,2,null,"True","True",null,"на сайте регулирующего органа",-1,-1,-1,-1,-1,-1,null,36,36,null,"Очистка сточных вод","Техническая вода и питьевая вода"]
[null,2009,null,"04","апрель","апреля","04","Астраханская область",null,"метод доходности инвестированного капитала",2,2,-1,-1,null,"False","False",null,"empty",2,2,2,2,2,2,null,36,36,null,null,"Подвозная вода"]
[null,2010,null,"05","май","мая","05","Белгородская область",null,"empty",2,2,2,2,null,"True","True",null,null,null,null,null,null,null,null,null,null,null,null,null,"Другое"]
[null,2011,null,"06","июнь","июня","06","Брянская область"]
[null,2012,null,"07","июль","июля","07","Владимирская область"]
[null,2013,null,"08","август","августа","08","Волгоградская область"]
[null,2014,null,"09","сентябрь","сентября","09","Вологодская область"]
[null,2015,null,10,"октябрь","октября",10,"Воронежская область"]
[null,2016,null,11,"ноябрь","ноября",11,"г.Байконур"]
[null,2017,null,12,"декабрь","декабря",12,"г. Москва"]
[null,2018,null,null,null,null,13,"г.Санкт-Петербург"]
[null,2019,null,null,null,null,14,"Еврейская автономная область"]
[null,2020,null,null,null,null,15,"Забайкальский край"]
["XML_ORG_LIST_TAG_NAMES",null,null,null,null,null,16,"Ивановская область"]
["NSRF",null,null,null,null,null,17,"Иркутская область"]
["MR_NAME",null,null,null,null,null,18,"Кабардино-Балкарская республика"]
["OKTMO_MR_NAME",null,null,null,null,null,19,"Калининградская область"]
["MO_NAME",null,null,null,null,null,20,"Калужская область"]
["OKTMO_NAME",null,null,null,null,null,21,"Камчатский край"]
["ORG_NAME",null,null,null,null,null,22,"Карачаево-Черкесская республика"]
["INN_NAME",null,null,null,null,null,23,"Кемеровская область"]
["KPP_NAME",null,null,null,null,null,24,"Кировская область"]
["VDET_NAME",null,null,null,null,null,25,"Костромская область"]
[null,null,null,null,null,null,26,"Краснодарский край"]
["XML_MR_MO_OKTMO_LIST_TAG_NAMES",null,null,null,null,null,27,"Красноярский край"]
["NSRF",null,null,null,null,null,28,"Курганская область"]
["MR_NAME",null,null,null,null,null,29,"Курская область"]
["OKTMO_MR_NAME",null,null,null,null,null,30,"Ленинградская область"]
["MO_NAME",null,null,null,null,null,31,"Липецкая область"]
["OKTMO_NAME",null,null,null,null,null,null,"Магаданская область"]
[null,null,null,null,null,null,null,"Московская область"]
[null,null,null,null,null,null,null,"Мурманская область"]
[null,null,null,null,null,null,null,"Ненецкий автономный округ"]
[null,null,null,null,null,null,null,"Нижегородская область"]
[null,null,null,null,null,null,null,"Новгородская область"]
[null,null,null,null,null,null,null,"Новосибирская область"]
[null,null,null,null,null,null,null,"Омская область"]
[null,null,null,null,null,null,null,"Оренбургская область"]
[null,null,null,null,null,null,null,"Орловская область"]
[null,null,null,null,null,null,null,"Пензенская область"]
[null,null,null,null,null,null,null,"Пермский край"]
[null,null,null,null,null,null,null,"Приморский край"]
[null,null,null,null,null,null,null,"Псковская область"]
[null,null,null,null,null,null,null,"Республика Адыгея"]
[null,null,null,null,null,null,null,"Республика Алтай"]
[null,null,null,null,null,null,null,"Республика Башкортостан"]
[null,null,null,null,null,null,null,"Республика Бурятия"]
[null,null,null,null,null,null,null,"Республика Дагестан"]
[null,null,null,null,null,null,null,"Республика Ингушетия"]
[null,null,null,null,null,null,null,"Республика Калмыкия"]
[null,null,null,null,null,null,null,"Республика Карелия"]
[null,null,null,null,null,null,null,"Республика Коми"]
[null,null,null,null,null,null,null,"Республика Марий Эл"]
[null,null,null,null,null,null,null,"Республика Мордовия"]
[null,null,null,null,null,null,null,"Республика Саха (Якутия)"]
[null,null,null,null,null,null,null,"Республика Северная Осетия-Алания"]
[null,null,null,null,null,null,null,"Республика Татарстан"]
[null,null,null,null,null,null,null,"Республика Тыва"]
[null,null,null,null,null,null,null,"Республика Хакасия"]
[null,null,null,null,null,null,null,"Ростовская область"]
[null,null,null,null,null,null,null,"Рязанская область"]
[null,null,null,null,null,null,null,"Самарская область"]
[null,null,null,null,null,null,null,"Саратовская область"]
[null,null,null,null,null,null,null,"Сахалинская область"]
[null,null,null,null,null,null,null,"Свердловская область"]
[null,null,null,null,null,null,null,"Смоленская область"]
[null,null,null,null,null,null,null,"Ставропольский край"]
[null,null,null,null,null,null,null,"Тамбовская область"]
[null,null,null,null,null,null,null,"Тверская область"]
[null,null,null,null,null,null,null,"Томская область"]
[null,null,null,null,null,null,null,"Тульская область"]
[null,null,null,null,null,null,null,"Тюменская область"]
[null,null,null,null,null,null,null,"Удмуртская республика"]
[null,null,null,null,null,null,null,"Ульяновская область"]
[null,null,null,null,null,null,null,"Хабаровский край"]
[null,null,null,null,null,null,null,"Ханты-Мансийский автономный округ"]
[null,null,null,null,null,null,null,"Челябинская область"]
[null,null,null,null,null,null,null,"Чеченская республика"]
[null,null,null,null,null,null,null,"Чувашская республика"]
[null,null,null,null,null,null,null,"Чукотский автономный округ"]
[null,null,null,null,null,null,null,"Ямало-Ненецкий автономный округ"]
[null,null,null,null,null,null,null,"Ярославская область"]

{"sheet":"REESTR_ORG","index":12,"n_rows":20,"n_cols":8,"rows_kept":20,"cut":false,"hidden":true,"merged":[]}
["№","МР","МО","МО ОКТМО","ОРГАНИЗАЦИЯ","ИНН","КПП","ВИД ДЕЯТЕЛЬНОСТИ"]
[1,"Александровский муниципальный район","Александровский сельсовет","07602402","МУП ЖКХ Александровского района","2601004596","260101001","Захоронение твердых бытовых отходов"]
[2,"Георгиевский муниципальный район","Незлобненский сельсовет","07615413","ООО \"Сфера-М\"","2625036124","262501001","Захоронение твердых бытовых отходов"]
[3,"Город Буденновск","Город Буденновск","07702000","ООО \"КБ\"","2624033201","262401001","Утилизация твердых бытовых отходов"]
[4,"Город Лермонтов","Город Лермонтов","07718000","МУП города Лермонтова \"Управление ЖКХ\"","2629005857","262901001","Захоронение твердых бытовых отходов"]
[5,"Город Невинномысск","Город Невинномысск","07724000","ООО \"Гранд\"","2631022480","263101001","Захоронение твердых бытовых отходов"]
[6,"Город Ставрополь","Город Ставрополь","07701000","ООО \"Полигон Яр\"","2635074930","263501001","Захоронение твердых бытовых отходов"]
[7,"Город Ставрополь","Город Ставрополь","07701000","ООО \"Чистый город\"","2635106934","263501001","Захоронение твердых бытовых отходов"]
[8,"Город-курорт Ессентуки","Город-курорт Ессентуки","07710000","ООО \"Арго\"","2626005270","262601001","Захоронение твердых бытовых отходов"]
[9,"Город-курорт Пятигорск","Город-курорт Пятигорск","07727000","ОАО \"ПТЭК\"","2632800936","263201001","Утилизация твердых бытовых отходов"]
[10,"Изобильненский муниципальный район","Город Изобильный","07620101","МП ЖКХ ИМР СК","2607008318","260701001","Захоронение твердых бытовых отходов"]
[11,"Ипатовский муниципальный район","Город Ипатово","07622101","ООО \"СтройСервисКомплект\"","2614020683","261401001","Захоронение твердых бытовых отходов"]
[12,"Кировский муниципальный район","Горнозаводской сельсовет","07625402","ГУП СК ЖКХ Кировского района","2609014934","260901001","Захоронение твердых бытовых отходов"]
[13,"Кировский муниципальный район","Город Новопавловск","07625101","ГУП СК ЖКХ Кировского района","2609014934","260901001","Захоронение твердых бытовых отходов"]
[14,"Кировский муниципальный район","Советский сельсовет","07625419","ГУП СК ЖКХ Кировского района","2609014934","260901001","Захоронение твердых бытовых отходов"]
[15,"Кировский муниципальный район","Станица Марьинская","07625410","ГУП СК ЖКХ Кировского района","2609014934","260901001","Захоронение твердых бытовых отходов"]
[16,"Кировский муниципальный район","Старопавловский сельсовет","07625422","ГУП СК ЖКХ Кировского района","2609014934","260901001","Захоронение твердых бытовых отходов"]
[17,"Левокумский муниципальный район","Село Левокумское","07636410","ООО ЖКХ \"Левокумского района\"","2613009334","261301001","Захоронение твердых бытовых отходов"]
[18,"Советский муниципальный район","Город Зеленокумск","07650101","ГУП СК \"ЖКХ Советского района\"","2619001525","261901001","Захоронение твердых бытовых отходов"]
[19,"Шпаковский муниципальный район","Город Михайловск","07658101","ООО \"Экология\"","2635126722","262301001","Захоронение твердых бытовых отходов"]

{"sheet":"REESTR_FILTERED","index":13,"n_rows":3,"n_cols":8,"rows_kept":3,"cut":false,"hidden":true,"merged":[]}
["№","МР","МО","МО ОКТМО","ОРГАНИЗАЦИЯ","ИНН","КПП","ВИД ДЕЯТЕЛЬНОСТИ"]
[1,"Абинский муниципальный район","Варнавинское","03601401","МУП \"Варнавинское\"","2323027035","232301001","Оказание услуг в сфере водоснабжения"]
[2,"Крымский муниципальный район","Варениковское","03625404","МУП \"Варениковское коммунальное хозяйство\"","2337032846","233701001","Оказание услуг в сфере водоснабжения и очистки сточных вод"]

{"sheet":"REESTR_MO","index":14,"n_rows":332,"n_cols":5,"rows_kept":332,"cut":false,"hidden":true,"merged":[]}
["МР","МО","МО_ОКТМО","МР","ИМЯ ДИАПАЗОНА"]
["Александровский муниципальный район","Александровский муниципальный район","07602000","Александровский муниципальный район","MO_LIST_2"]
["Александровский муниципальный район","Александровский сельсовет","07602402","Андроповский муниципальный район","MO_LIST_3"]
["Александровский муниципальный район","Калиновский сельсовет","07602407","Апанасенковский муниципальный район","MO_LIST_4"]
["Александровский муниципальный район","Круглолесский сельсовет","07602410","Арзгирский муниципальный район","MO_LIST_5"]
["Александровский муниципальный район","Новокавказский сельсовет","07602413","Благодарненский муниципальный район","MO_LIST_6"]
["Александровский муниципальный район","Саблинский сельсовет","07602416","Буденновский муниципальный район","MO_LIST_7"]
["Александровский муниципальный район","Село Грушевское","07602404","ГО Ставропольского края","MO_LIST_8"]
["Александровский муниципальный район","Село Северное","07602419","Георгиевский муниципальный район","MO_LIST_9"]
["Александровский муниципальный район","Средненский сельсовет","07602422","Город Буденновск","MO_LIST_10"]
["Андроповский муниципальный район","Андроповский муниципальный район","07632000","Город Георгиевск","MO_LIST_11"]
["Андроповский муниципальный район","Водораздельный сельсовет","07632402","Город Лермонтов","MO_LIST_12"]
["Андроповский муниципальный район","Казинский сельсовет","07632406","Город Невинномысск","MO_LIST_13"]
["Андроповский муниципальный район","Красноярский сельсовет","07632407","Город Ставрополь","MO_LIST_14"]
["Андроповский муниципальный район","Крымгиреевский сельсовет","07632408","Город-курорт Ессентуки","MO_LIST_15"]
["Андроповский муниципальный район","Курсавский сельсовет","07632410","Город-курорт Железноводск","MO_LIST_16"]
["Андроповский муниципальный район","Куршавский сельсовет","07632412","Город-курорт Кисловодск","MO_LIST_17"]
["Андроповский муниципальный район","Новоянкульский сельсовет","07632414","Город-курорт Пятигорск","MO_LIST_18"]
["Андроповский муниципальный район","Село Султан","07632419","Грачевский муниципальный район","MO_LIST_19"]
["Андроповский муниципальный район","Солуно-Дмитриевский сельсовет","07632416","Изобильненский муниципальный район","MO_LIST_20"]
["Андроповский муниципальный район","Станица Воровсколесская","07632404","Ипатовский муниципальный район","MO_LIST_21"]
["Андроповский муниципальный район","Янкульский сельсовет","07632422","Кировский муниципальный район","MO_LIST_22"]
["Апанасенковский муниципальный район","Айгурский сельсовет","07605402","Кочубеевский муниципальный район","MO_LIST_23"]
["Апанасенковский муниципальный район","Апанасенковский муниципальный район","07605000","Красногвардейский муниципальный район","MO_LIST_24"]
["Апанасенковский муниципальный район","Дербетовский сельсовет","07605416","Курский муниципальный район","MO_LIST_25"]
["Апанасенковский муниципальный район","Село Апанасенковское","07605404","Левокумский муниципальный район","MO_LIST_26"]
["Апанасенковский муниципальный район","Село Белые Копани","07605407","Минераловодский муниципальный район","MO_LIST_27"]
["Апанасенковский муниципальный район","Село Воздвиженское","07605410","Нефтекумский муниципальный район","MO_LIST_28"]
["Апанасенковский муниципальный район","Село Вознесеновское","07605413","Новоалександровский муниципальный район","MO_LIST_29"]
["Апанасенковский муниципальный район","Село Дивное","07605419","Новоселицкий муниципальный район","MO_LIST_30"]
["Апанасенковский муниципальный район","Село Киевка","07605422","Петровский муниципальный район","MO_LIST_31"]
["Апанасенковский муниципальный район","Село Малая Джалга","07605425","Предгорный муниципальный район","MO_LIST_32"]
["Апанасенковский муниципальный район","Село Манычское","07605428","Советский муниципальный район","MO_LIST_33"]
["Апанасенковский муниципальный район","Село Рагули","07605431","Степновский муниципальный район","MO_LIST_34"]
["Арзгирский муниципальный район","Арзгирский муниципальный район","07607000","Труновский муниципальный район","MO_LIST_35"]
["Арзгирский муниципальный район","Арзгирский сельсовет","07607402","Туркменский муниципальный район","MO_LIST_36"]
["Арзгирский муниципальный район","Новоромановский сельсовет","07607404","Шпаковский муниципальный район","MO_LIST_37"]
["Арзгирский муниципальный район","Село Каменная Балка","07607403"]
["Арзгирский муниципальный район","Село Петропавловское","07607407"]
["Арзгирский муниципальный район","Село Родниковское","07607410"]
["Арзгирский муниципальный район","Село Садовое","07607413"]
["Арзгирский муниципальный район","Село Серафимовское","07607416"]
["Арзгирский муниципальный район","Чограйский сельсовет","07607422"]
["Благодарненский муниципальный район","Cело Елизаветинское","07610410"]
["Благодарненский муниципальный район","Александрийский сельсовет","07610402"]
["Благодарненский муниципальный район","Аул Эдельбай","07610428"]
["Благодарненский муниципальный район","Благодарненский муниципальный район","07610000"]
["Благодарненский муниципальный район","Город Благодарный","07610101"]
["Благодарненский муниципальный район","Каменнобалковский сельсовет","07610413"]
["Благодарненский муниципальный район","Красноключевский сельсовет","07610416"]
["Благодарненский муниципальный район","Село Алексеевское","07610404"]
["Благодарненский муниципальный район","Село Бурлацкое","07610407"]
["Благодарненский муниципальный район","Село Мирное","07610417"]
["Благодарненский муниципальный район","Село Сотниковское","07610419"]
["Благодарненский муниципальный район","Село Спасское","07610422"]
["Благодарненский муниципальный район","Село Шишкино","07610427"]
["Благодарненский муниципальный район","Ставропольский сельсовет","07610425"]
["Благодарненский муниципальный район","Хутор Большевик","07610406"]
["Буденновский муниципальный район","Архиповский сельсовет","07612404"]
["Буденновский муниципальный район","Буденновский муниципальный район","07612000"]
["Буденновский муниципальный район","Искровский сельсовет","07612407"]
["Буденновский муниципальный район","Краснооктябрьский сельсовет","07612409"]
["Буденновский муниципальный район","Новожизненский сельсовет","07612410"]
["Буденновский муниципальный район","Орловский сельсовет","07612413"]
["Буденновский муниципальный район","Покойненский сельсовет","07612416"]
["Буденновский муниципальный район","Преображенский сельсовет","07612420"]
["Буденновский муниципальный район","Село Архангельское","07612402"]
["Буденновский муниципальный район","Село Прасковея","07612419"]
["Буденновский муниципальный район","Село Толстово-Васюковское","07612427"]
["Буденновский муниципальный район","Стародубский сельсовет","07612422"]
["Буденновский муниципальный район","Терский сельсовет","07612425"]
["Буденновский муниципальный район","Томузловский сельсовет","07612429"]
["ГО Ставропольского края","ГО Ставропольского края","07700000"]
["Георгиевский муниципальный район","Александрийский сельсовет","07615402"]
["Георгиевский муниципальный район","Балковский сельсовет","07615403"]
["Георгиевский муниципальный район","Георгиевский муниципальный район","07615000"]
["Георгиевский муниципальный район","Крутоярский сельсовет","07615408"]
["Георгиевский муниципальный район","Незлобненский сельсовет","07615413"]
["Георгиевский муниципальный район","Поселок Новый","07615415"]
["Георгиевский муниципальный район","Село Краснокумское","07615406"]
["Георгиевский муниципальный район","Село Новозаведенное","07615416"]
["Георгиевский муниципальный район","Село Обильное","07615419"]
["Георгиевский муниципальный район","Станица Георгиевская","07615404"]
["Георгиевский муниципальный район","Станица Лысогорская","07615410"]
["Георгиевский муниципальный район","Станица Подгорная","07615422"]
["Георгиевский муниципальный район","Ульяновский сельсовет","07615425"]
["Георгиевский муниципальный район","Урухский сельсовет","07615428"]
["Георгиевский муниципальный район","Шаумяновский сельсовет","07615431"]
["Город Буденновск","Город Буденновск","07702000"]
["Город Георгиевск","Город Георгиевск","07707000"]
["Город Лермонтов","Город Лермонтов","07718000"]
["Город Невинномысск","Город Невинномысск","07724000"]
["Город Ставрополь","Город Ставрополь","07701000"]
["Город-курорт Ессентуки","Город-курорт Ессентуки","07710000"]
["Город-курорт Железноводск","Город-курорт Железноводск","07712000"]
["Город-курорт Кисловодск","Город-курорт Кисловодск","07715000"]
["Город-курорт Пятигорск","Город-курорт Пятигорск","07727000"]
["Грачевский муниципальный район","Грачевский муниципальный район","07617000"]
["Грачевский муниципальный район","Грачевский сельсовет","07617404"]
["Грачевский муниципальный район","Красный сельсовет","07617407"]
["Грачевский муниципальный район","Кугультинский сельсовет","07617410"]
["Грачевский муниципальный район","Село Бешпагир","07617401"]
["Грачевский муниципальный район","Село Тугулук","07617422"]
["Грачевский муниципальный район","Сергиевский сельсовет","07617413"]
["Грачевский муниципальный район","Спицевский сельсовет","07617416"]
["Грачевский муниципальный район","Старомарьевский сельсовет","07617419"]
["Изобильненский муниципальный район","Город Изобильный","07620101"]
["Изобильненский муниципальный район","Изобильненский муниципальный район","07620000"]
["Изобильненский муниципальный район","Каменнобродский сельсовет","07620404"]
["Изобильненский муниципальный район","Московский сельсовет","07620407"]
["Изобильненский муниципальный район","Новоизобильненский сельсовет","07620409"]
["Изобильненский муниципальный район","Передовой сельсовет","07620412"]
["Изобильненский муниципальный район","Подлужненский сельсовет","07620413"]
["Изобильненский муниципальный район","Поселок Рыздвяный","07620153"]
["Изобильненский муниципальный район","Поселок Солнечнодольск","07620155"]
["Изобильненский муниципальный район","Рождественский сельсовет","07620416"]
["Изобильненский муниципальный район","Село Птичье","07620414"]
["Изобильненский муниципальный район","Село Тищенское","07620422"]
["Изобильненский муниципальный район","Станица Баклановская","07620402"]
["Изобильненский муниципальный район","Станица Новотроицкая","07620410"]
["Изобильненский муниципальный район","Староизобильненский сельсовет","07620419"]
["Изобильненский муниципальный район","Хутор Спорный","07620418"]
["Ипатовский муниципальный район","Большевистский сельсовет","07622402"]
["Ипатовский муниципальный район","Винодельненский сельсовет","07622410"]
["Ипатовский муниципальный район","Город Ипатово","07622101"]
["Ипатовский муниципальный район","Добровольно-Васильевский сельсовет","07622413"]
["Ипатовский муниципальный район","Золотаревский сельсовет","07622416"]
["Ипатовский муниципальный район","Ипатовский муниципальный район","07622000"]
["Ипатовский муниципальный район","Кевсалинский сельсовет","07622422"]
["Ипатовский муниципальный район","Красочный сельсовет","07622425"]
["Ипатовский муниципальный район","Леснодачненский сельсовет","07622427"]
["Ипатовский муниципальный район","Лиманский сельсовет","07622428"]
["Ипатовский муниципальный район","Мало-Барханчакский сельсовет","07622429"]
["Ипатовский муниципальный район","Октябрьский сельсовет","07622431"]
["Ипатовский муниципальный район","Первомайский сельсовет","07622434"]
["Ипатовский муниципальный район","Село Большая Джалга","07622404"]
["Ипатовский муниципальный район","Село Бурукшун","07622407"]
["Ипатовский муниципальный район","Советскорунный сельсовет","07622437"]
["Ипатовский муниципальный район","Тахтинский сельсовет","07622440"]
["Кировский муниципальный район","Горнозаводской сельсовет","07625402"]
["Кировский муниципальный район","Город Новопавловск","07625101"]
["Кировский муниципальный район","Зольский сельсовет","07625404"]
["Кировский муниципальный район","Кировский муниципальный район","07625000"]
["Кировский муниципальный район","Комсомольский сельсовет","07625407"]
["Кировский муниципальный район","Новосредненский сельсовет","07625416"]
["Кировский муниципальный район","Орловский сельсовет","07625417"]
["Кировский муниципальный район","Посёлок Фазанный","07625428"]
["Кировский муниципальный район","Советский сельсовет","07625419"]
["Кировский муниципальный район","Станица Марьинская","07625410"]
["Кировский муниципальный район","Старопавловский сельсовет","07625422"]
["Кочубеевский муниципальный район","Балахоновский сельсовет","07628402"]
["Кочубеевский муниципальный район","Барсуковский сельсовет","07628404"]
["Кочубеевский муниципальный район","Васильевский сельсовет","07628440"]
["Кочубеевский муниципальный район","Вревский сельсовет","07628407"]
["Кочубеевский муниципальный район","Георгиевский сельсовет","07628408"]
["Кочубеевский муниципальный район","Заветненский сельсовет","07628413"]
["Кочубеевский муниципальный район","Ивановский сельсовет","07628416"]
["Кочубеевский муниципальный район","Казьминский сельсовет","07628419"]
["Кочубеевский муниципальный район","Кочубеевский муниципальный район","07628000"]
["Кочубеевский муниципальный район","Мищенский сельсовет","07628423"]
["Кочубеевский муниципальный район","Надзорненский сельсовет","07628424"]
["Кочубеевский муниципальный район","Новодеревенский сельсовет","07628425"]
["Кочубеевский муниципальный район","Село Кочубеевское","07628422"]
["Кочубеевский муниципальный район","Станица Беломечетская","07628406"]
["Кочубеевский муниципальный район","Стародворцовский сельсовет","07628430"]
["Кочубеевский муниципальный район","Усть-Невинский сельсовет","07628435"]
["Красногвардейский муниципальный район","Коммунаровский сельсовет","07630404"]
["Красногвардейский муниципальный район","Красногвардейский муниципальный район","07630000"]
["Красногвардейский муниципальный район","Медвеженский сельсовет","07630413"]
["Красногвардейский муниципальный район","Привольненский сельсовет","07630425"]
["Красногвардейский муниципальный район","Родыковский сельсовет","07630428"]
["Красногвардейский муниципальный район","Село Дмитриевское","07630402"]
["Красногвардейский муниципальный район","Село Красногвардейское","07630407"]
["Красногвардейский муниципальный район","Село Ладовская Балка","07630410"]
["Красногвардейский муниципальный район","Село Новомихайловское","07630416"]
["Красногвардейский муниципальный район","Село Покровское","07630419"]
["Красногвардейский муниципальный район","Село Преградное","07630422"]
["Красногвардейский муниципальный район","Штурмовский сельсовет","07630443"]
["Курский муниципальный район","Балтийский сельсовет","07633402"]
["Курский муниципальный район","Галюгаевский сельсовет","07633404"]
["Курский муниципальный район","Кановский сельсовет","07633406"]
["Курский муниципальный район","Курский муниципальный район","07633000"]
["Курский муниципальный район","Курский сельсовет","07633407"]
["Курский муниципальный район","Мирненский сельсовет","07633410"]
["Курский муниципальный район","Полтавский сельсовет","07633413"]
["Курский муниципальный район","Ростовановский сельсовет","07633416"]
["Курский муниципальный район","Рощинский сельсовет","07633419"]
["Курский муниципальный район","Русский сельсовет","07633422"]
["Курский муниципальный район","Село Эдиссия","07633428"]
["Курский муниципальный район","Серноводский сельсовет","07633425"]
["Курский муниципальный район","Станица Стодеревская","07633426"]
["Левокумский муниципальный район","Бургун-Маджарский сельсовет","07636402"]
["Левокумский муниципальный район","Величаевский сельсовет","07636404"]
["Левокумский муниципальный район","Владимировский сельсовет","07636407"]
["Левокумский муниципальный район","Заринский сельсовет","07636409"]
["Левокумский муниципальный район","Левокумский муниципальный район","07636000"]
["Левокумский муниципальный район","Николо-Александровский сельсовет","07636413"]
["Левокумский муниципальный район","Поселок Новокумский","07636414"]
["Левокумский муниципальный район","Село Левокумское","07636410"]
["Левокумский муниципальный район","Село Правокумское","07636416"]
["Левокумский муниципальный район","Село Приозерское","07636417"]
["Левокумский муниципальный район","Село Урожайное","07636422"]
["Левокумский муниципальный район","Турксадский сельсовет","07636419"]
["Минераловодский муниципальный район","Город Минеральные Воды","07639101"]
["Минераловодский муниципальный район","Гражданский сельсовет","07639402"]
["Минераловодский муниципальный район","Левокумский сельсовет","07639421"]
["Минераловодский муниципальный район","Ленинский сельсовет","07639407"]
["Минераловодский муниципальный район","Марьино-Колодцевский сельсовет","07639410"]
["Минераловодский муниципальный район","Минераловодский муниципальный район","07639000"]
["Минераловодский муниципальный район","Нижнеалександровский сельсовет","07639416"]
["Минераловодский муниципальный район","Первомайский сельсовет","07639418"]
["Минераловодский муниципальный район","Перевальненский сельсовет","07639420"]
["Минераловодский муниципальный район","Побегайловский сельсовет","07639419"]
["Минераловодский муниципальный район","Поселок Анджиевский","07639152"]
["Минераловодский муниципальный район","Прикумский сельсовет","07639422"]
["Минераловодский муниципальный район","Розовский сельсовет","07639425"]
["Минераловодский муниципальный район","Село Греческое","07639404"]
["Минераловодский муниципальный район","Село Нагутское","07639413"]
["Минераловодский муниципальный район","Ульяновский сельсовет","07639430"]
["Нефтекумский муниципальный район","Город Нефтекумск","07641101"]
["Нефтекумский муниципальный район","Закумский сельсовет","07641403"]
["Нефтекумский муниципальный район","Зимнеставочный сельсовет","07641404"]
["Нефтекумский муниципальный район","Зункарский сельсовет","07641405"]
["Нефтекумский муниципальный район","Кара-Тюбинский сельсовет","07641407"]
["Нефтекумский муниципальный район","Каясулинский сельсовет","07641410"]
["Нефтекумский муниципальный район","Махмуд-Мектебский сельсовет","07641413"]
["Нефтекумский муниципальный район","Нефтекумский муниципальный район","07641000"]
["Нефтекумский муниципальный район","Новкус-Артезианский сельсовет","07641416"]
["Нефтекумский муниципальный район","Озек-Суатский сельсовет","07641419"]
["Нефтекумский муниципальный район","Поселок Затеречный","07641153"]
["Нефтекумский муниципальный район","Село Ачикулак","07641402"]
["Нефтекумский муниципальный район","Тукуй-Мектебский сельсовет","07641422"]
["Новоалександровский муниципальный район","Город Новоалександровск","07643101"]
["Новоалександровский муниципальный район","Горьковский сельсовет","07643402"]
["Новоалександровский муниципальный район","Григорополисский сельсовет","07643404"]
["Новоалександровский муниципальный район","Краснозоринский сельсовет","07643407"]
["Новоалександровский муниципальный район","Красночервонный сельсовет","07643423"]
["Новоалександровский муниципальный район","Новоалександровский муниципальный район","07643000"]
["Новоалександровский муниципальный район","Присадовый сельсовет","07643410"]
["Новоалександровский муниципальный район","Радужский сельсовет","07643412"]
["Новоалександровский муниципальный район","Раздольненский сельсовет","07643413"]
["Новоалександровский муниципальный район","Светлинский сельсовет","07643417"]
["Новоалександровский муниципальный район","Станица Кармалиновская","07643406"]
["Новоалександровский муниципальный район","Станица Расшеватская","07643416"]
["Новоалександровский муниципальный район","Темижбекский сельсовет","07643419"]
["Новоселицкий муниципальный район","Журавский сельсовет","07644404"]
["Новоселицкий муниципальный район","Новомаякский сельсовет","07644409"]
["Новоселицкий муниципальный район","Новоселицкий муниципальный район","07644000"]
["Новоселицкий муниципальный район","Поселок Щелкан","07644420"]
["Новоселицкий муниципальный район","Село Долиновка","07644402"]
["Новоселицкий муниципальный район","Село Китаевское","07644407"]
["Новоселицкий муниципальный район","Село Новоселицкое","07644410"]
["Новоселицкий муниципальный район","Село Падинское","07644412"]
["Новоселицкий муниципальный район","Село Чернолесское","07644413"]
["Петровский муниципальный район","Высоцкий сельсовет","07646404"]
["Петровский муниципальный район","Город Светлоград","07646101"]
["Петровский муниципальный район","Дон-Балковский сельсовет","07646410"]
["Петровский муниципальный район","Константиновский сельсовет","07646413"]
["Петровский муниципальный район","Петровский муниципальный район","07646000"]
["Петровский муниципальный район","Прикалаусский сельсовет","07646417"]
["Петровский муниципальный район","Просянский сельсовет","07646418"]
["Петровский муниципальный район","Рогато-Балковский сельсовет","07646419"]
["Петровский муниципальный район","Село Благодатное","07646402"]
["Петровский муниципальный район","Село Гофицкое","07646407"]
["Петровский муниципальный район","Село Николина Балка","07646416"]
["Петровский муниципальный район","Село Сухая Буйвола","07646422"]
["Петровский муниципальный район","Село Шведино","07646428"]
["Петровский муниципальный район","Шангалинский сельсовет","07646425"]
["Предгорный муниципальный район","Винсадский сельсовет","07648410"]
["Предгорный муниципальный район","Ессентукский сельсовет","07648413"]
["Предгорный муниципальный район","Нежинский сельсовет","07648416"]
["Предгорный муниципальный район","Новоблагодарненский сельсовет","07648422"]
["Предгорный муниципальный район","Подкумский сельсовет","07648424"]
["Предгорный муниципальный район","Поселок Мирный","07648415"]
["Предгорный муниципальный район","Предгорный муниципальный район","07648000"]
["Предгорный муниципальный район","Пригородный сельсовет","07648425"]
["Предгорный муниципальный район","Пятигорский сельсовет","07648428"]
["Предгорный муниципальный район","Станица Бекешевская","07648402"]
["Предгорный муниципальный район","Станица Боргустанская","07648407"]
["Предгорный муниципальный район","Суворовский сельсовет","07648431"]
["Предгорный муниципальный район","Тельмановский сельсовет","07648432"]
["Предгорный муниципальный район","Этокский сельсовет","07648434"]
["Предгорный муниципальный район","Юцкий сельсовет","07648437"]
["Предгорный муниципальный район","Яснополянский сельсовет","07648440"]
["Советский муниципальный район","Восточный сельсовет","07650402"]
["Советский муниципальный район","Город Зеленокумск","07650101"]
["Советский муниципальный район","Нинский сельсовет","07650407"]
["Советский муниципальный район","Правокумский сельсовет","07650413"]
["Советский муниципальный район","Село Горькая Балка","07650404"]
["Советский муниципальный район","Село Отказное","07650410"]
["Советский муниципальный район","Советский муниципальный район","07650000"]
["Советский муниципальный район","Солдато-Александровский сельсовет","07650416"]
["Степновский муниципальный район","Богдановский сельсовет","07652402"]
["Степновский муниципальный район","Варениковский сельсовет","07652404"]
["Степновский муниципальный район","Верхнестепновский сельсовет","07652407"]
["Степновский муниципальный район","Иргаклинский сельсовет","07652410"]
["Степновский муниципальный район","Ольгинский сельсовет","07652415"]
["Степновский муниципальный район","Село Соломенское","07652420"]
["Степновский муниципальный район","Степновский муниципальный район","07652000"]
["Степновский муниципальный район","Степновский сельсовет","07652426"]
["Труновский муниципальный район","Безопасненский сельсовет","07654402"]
["Труновский муниципальный район","Донской сельсовет","07654404"]
["Труновский муниципальный район","Кировский сельсовет","07654407"]
["Труновский муниципальный район","Село Новая Кугульта","07654410"]
["Труновский муниципальный район","Село Подлесное","07654413"]
["Труновский муниципальный район","Труновский муниципальный район","07654000"]
["Труновский муниципальный район","Труновский сельсовет","07654416"]
["Туркменский муниципальный район","Владимировский сельсовет","07656401"]
["Туркменский муниципальный район","Кендже-Кулакский сельсовет","07656407"]
["Туркменский муниципальный район","Красноманычский сельсовет","07656410"]
["Туркменский муниципальный район","Куликово-Копанский сельсовет","07656413"]
["Туркменский муниципальный район","Кучерлинский сельсовет","07656416"]
["Туркменский муниципальный район","Летнеставочный сельсовет","07656419"]
["Туркменский муниципальный район","Новокучерлинский сельсовет","07656424"]
["Туркменский муниципальный район","Овощинский сельсовет","07656426"]
["Туркменский муниципальный район","Село Казгулак","07656402"]
["Туркменский муниципальный район","Село Камбулат","07656404"]
["Туркменский муниципальный район","Село Малые Ягуры","07656422"]
["Туркменский муниципальный район","Туркменский муниципальный район","07656000"]
["Шпаковский муниципальный район","Верхнерусский сельсовет","07658402"]
["Шпаковский муниципальный район","Город Михайловск","07658101"]
["Шпаковский муниципальный район","Деминский сельсовет","07658404"]
["Шпаковский муниципальный район","Дубовский сельсовет","07658406"]
["Шпаковский муниципальный район","Казинский сельсовет","07658408"]
["Шпаковский муниципальный район","Надеждинский сельсовет","07658410"]
["Шпаковский муниципальный район","Пелагиадский сельсовет","07658416"]
["Шпаковский муниципальный район","Сенгилеевский сельсовет","07658419"]
["Шпаковский муниципальный район","Станица Новомарьевская","07658413"]
["Шпаковский муниципальный район","Татарский сельсовет","07658422"]
["Шпаковский муниципальный район","Темнолесский сельсовет","07658425"]
["Шпаковский муниципальный район","Цимлянский сельсовет","07658428"]
["Шпаковский муниципальный район","Шпаковский муниципальный район","07658000"]

{"sheet":"modHyperlink","index":15,"n_rows":0,"n_cols":0,"rows_kept":0,"cut":false,"hidden":true,"merged":[]}

{"sheet":"modChange","index":16,"n_rows":0,"n_cols":0,"rows_kept":0,"cut":false,"hidden":true,"merged":[]}

{"sheet":"modfrmReestr","index":17,"n_rows":0,"n_cols":0,"rows_kept":0,"cut":false,"hidden":true,"merged":[]}

{"sheet":"modPROV","index":18,"n_rows":0,"n_cols":0,"rows_kept":0,"cut":false,"hidden":true,"merged":[]}

{"sheet":"modTitleSheetHeaders","index":19,"n_rows":0,"n_cols":0,"rows_kept":0,"cut":false,"hidden":true,"merged":[]}

{"sheet":"modServiceModule","index":20,"n_rows":0,"n_cols":0,"rows_kept":0,"cut":false,"hidden":true,"merged":[]}

{"sheet":"modClassifierValidate","index":21,"n_rows":0,"n_cols":0,"rows_kept":0,"cut":false,"hidden":true,"merged":[]}

{"sheet":"modWindowClipboard","index":22,"n_rows":0,"n_cols":0,"rows_kept":0,"cut":false,"hidden":true,"merged":[]}

{"sheet":"modInfo","index":23,"n_rows":0,"n_cols":0,"rows_kept":0,"cut":false,"hidden":true,"merged":[]}

{"sheet":"modfrmDateChoose","index":24,"n_rows":0,"n_cols":0,"rows_kept":0,"cut":false,"hidden":true,"merged":[]}

{"sheet":"modReestrMO","index":25,"n_rows":0,"n_cols":0,"rows_kept":0,"cut":false,"hidden":true,"merged":[]}

{"sheet":"modDblClick","index":26,"n_rows":0,"n_cols":0,"rows_kept":0,"cut":false,"hidden":true,"merged":[]}

{"sheet":"modUpdTemplMain","index":27,"n_rows":0,"n_cols":0,"rows_kept":0,"cut":false,"hidden":true,"merged":[]}

{"sheet":"modSheetMain01","index":28,"n_rows":0,"n_cols":0,"rows_kept":0,"cut":false,"hidden":true,"merged":[]}

{"sheet":"modSheetMain02","index":29,"n_rows":0,"n_cols":0,"rows_kept":0,"cut":false,"hidden":true,"merged":[]}

{"sheet":"modSheetMain03","index":30,"n_rows":0,"n_cols":0,"rows_kept":0,"cut":false,"hidden":true,"merged":[]}

{"sheet":"modSheetMain04","index":31,"n_rows":0,"n_cols":0,"rows_kept":0,"cut":false,"hidden":true,"merged":[]}

{"sheet":"modSheetMain05","index":32,"n_rows":0,"n_cols":0,"rows_kept":0,"cut":false,"hidden":true,"merged":[]}

{"sheet":"modRegionSelectSub","index":33,"n_rows":0,"n_cols":0,"rows_kept":0,"cut":false,"hidden":true,"merged":[]}

{"sheet":"Паспорт","index":34,"n_rows":71,"n_cols":57,"rows_kept":71,"cut":false,"hidden":true,"merged":[[52,8,52,10],[53,8,53,10],[44,8,44,10],[45,8,45,10],[50,8,50,10],[51,8,51,10],[48,8,48,10],[49,8,49,10],[46,8,46,10],[47,8,47,10],[3,3,3,10],[12,5,12,10],[13,5,13,10],[6,5,6,10],[7,5,7,10],[5,3,5,10],[8,5,8,10],[9,5,9,10],[10,5,10,10],[11,5,11,10],[14,6,14,9],[21,5,21,10],[17,3,17,10],[15,5,15,10],[18,5,18,10],[19,5,19,10],[20,5,20,10],[30,5,30,10],[31,7,31,10],[32,7,32,10],[22,5,22,10],[23,5,23,10],[29,3,29,10],[25,3,25,10],[26,5,26,10],[27,3,27,10],[33,3,33,10],[54,3,54,10],[62,5,62,10],[57,5,57,10],[58,5,58,10],[56,3,56,10],[36,8,36,10],[37,8,37,10],[59,5,59,10],[35,3,35,10],[42,8,42,10],[43,8,43,10],[41,8,41,10],[38,8,38,10],[39,8,39,10],[40,8,40,10],[64,3,64,10],[61,3,61,10],[63,5,63,10],[70,5,70,10],[69,5,69,10],[68,5,68,10],[67,5,67,10],[66,3,66,10]]}
[null,null,null,null,null,null,null,null,null,null,null,null,null,null,null,null,null,null,null,null,null,null,null,null,null,null,null,null,null,null,null,null,null,null,null,null,null,null,null,null,null,null,null,null,null,null,null,"Код диапазона:","Название диапазона:","Сфера регулирования:","Подсфера:","Тип информации в шаблоне:","Состояние шаблона:","Периодичность:","\"Геотип\" шаблона:","Тип шаблона:","Заказчик:"]
[null,null,null,null,null,null,null,null,null,null,null,null,null,null,null,null,null,null,null,null,null,null,null,null,null,null,null,null,null,null,null,null,null,null,null,null,null,null,null,null,null,null,null,null,null,null,null,"ps_sr","Сфера регулирования:","Не определено","Не определено","Не определено","Не определено","Не определено","Не определено","Не определено","Не определено"]
[null,null,null,null,null,null,null,null,null,null,null,null,null,null,null,null,null,null,null,null,null,null,null,null,null,null,null,null,null,null,null,null,null,null,null,null,null,null,null,null,null,null,null,null,null,null,null,"ps_ti","Тип информации в шаблоне:","NETS","водоотведение - очистка","Статистический","Проект","Единовременный","Региональный шаблон","Атомарный","РЭК"]
[null,null,null,"Паспорт к шаблону",null,null,null,null,null,null,null,null,null,null,null,null,null,null,null,null,null,null,null,null,null,null,null,null,null,null,null,null,null,null,null,null,null,null,null,null,null,null,null,null,null,null,null,"ps_ssh","Состояние шаблона:","Аэропорты","водоотведение - передача","Расчетный","Утвержден","Ежемесячный","Муниципальный шаблон","Сводный","ФСТ"]
[null,null,null,null,null,null,null,null,null,null,null,null,null,null,null,null,null,null,null,null,null,null,null,null,null,null,null,null,null,null,null,null,null,null,null,null,null,null,null,null,null,null,null,null,null,null,null,"ps_p","Периодичность:","Газ","водоотведение - прием","Обосновывающие материалы",null,"Ежеквартальный","Шаблон от организации",null,"Экспертная организация"]
[null,null,null,"1. Общие сведения",null,null,null,null,null,null,null,null,null,null,null,null,null,null,null,null,null,null,null,null,null,null,null,null,null,null,null,null,null,null,null,null,null,null,null,null,null,null,null,null,null,null,null,"ps_geo","\"Геотип\" шаблона:","Железные дороги","водоснабжение - очистка",null,null,"Ежегодный"]
[null,null,null,"1.1","Код",null,null,null,null,null,null,null,null,null,null,null,null,null,null,null,null,null,null,null,null,null,null,null,null,null,null,null,null,null,null,null,null,null,null,null,null,null,null,null,null,null,null,"ps_tsh","Тип шаблона:","ЖКХ","водоснабжение - передача"]
[null,null,null,"1.2","Краткое наименование",null,null,null,null,null,null,null,null,null,null,null,null,null,null,null,null,null,null,null,null,null,null,null,null,null,null,null,null,null,null,null,null,null,null,null,null,null,null,null,null,null,null,"ps_psr","Подсфера:","Медицина","водоснабжение - подъем"]
[null,null,null,"1.3","Полное наименование",null,null,null,null,null,null,null,null,null,null,null,null,null,null,null,null,null,null,null,null,null,null,null,null,null,null,null,null,null,null,null,null,null,null,null,null,null,null,null,null,null,null,"ps_z","Заказчик:","Порты","выработка ТС  "]
[null,null,null,"1.4","Сфера регулирования ",null,null,null,null,null,null,null,null,null,null,null,null,null,null,null,null,null,null,null,null,null,null,null,null,null,null,null,null,null,null,null,null,null,null,null,null,null,null,null,null,null,null,null,null,"Связь","выработка ТС в режиме комбинированной выработки"]
[null,null,null,"1.5","Подсфера",null,null,null,null,null,null,null,null,null,null,null,null,null,null,null,null,null,null,null,null,null,null,null,null,null,null,null,null,null,null,null,null,null,null,null,null,null,null,null,null,null,null,null,null,"Транспорт","выработка электрической энергии"]
[null,null,null,"1.6","Состояние шаблона (Утвержден/Проект)",null,null,null,null,null,null,null,null,null,null,null,null,null,null,null,null,null,null,null,null,null,null,null,null,null,null,null,null,null,null,null,null,null,null,null,null,null,null,null,null,null,null,null,null,"Электроэнергетика","выработка+передача+сбыт ТС"]
[null,null,null,"1.7","Заказчик",null,null,null,null,null,null,null,null,null,null,null,null,null,null,null,null,null,null,null,null,null,null,null,null,null,null,null,null,null,null,null,null,null,null,null,null,null,null,null,null,null,null,null,null,null,"передача ТС"]
[null,null,null,"1.8","Отчитывается",null,null,null,null,null,null,null,null,null,null,null,null,null,null,null,null,null,null,null,null,null,null,null,null,null,null,null,null,null,null,null,null,null,null,null,null,null,null,null,null,null,null,null,null,null,"передача ЭЭ"]
[null,null,null,"1.9","Тип шаблона",null,"Если шаблон сводный, необходимо указать код атомарного шаблона для него:",null,null,null,null,null,null,null,null,null,null,null,null,null,null,null,null,null,null,null,null,null,null,null,null,null,null,null,null,null,null,null,null,null,null,null,null,null,null,null,null,null,null,null,"сбыт ТС"]
[null,null,null,"1.10","Текущая версия",null,null,null,null,null,null,null,null,null,null,null,null,null,null,null,null,null,null,null,null,null,null,null,null,null,null,null,null,null,null,null,null,null,null,null,null,null,null,null,null,null,null,null,null,null,"сбыт ЭЭ"]
[null,null,null,null,null,null,null,null,null,null,null,null,null,null,null,null,null,null,null,null,null,null,null,null,null,null,null,null,null,null,null,null,null,null,null,null,null,null,null,null,null,null,null,null,null,null,null,null,null,null,"ТБО"]
[null,null,null,"2. Организационные"]
[null,null,null,"2.1","Тип информации в шаблоне "]
[null,null,null,"2.2","Ответственный регулятор (от заказчика)"]
[null,null,null,"2.3","Ответственный специалист (от СМА)"]
[null,null,null,"2.4","Ответственный программист (от СМА)"]
[null,null,null,"2.5","Ответственные за сбор данных (от СМА)"]
[null,null,null,"2.6","Ответственные за сбор данных (от заказчика)"]
[]
[null,null,null,"3. Законодательство (методики, приказы, постановления ...)"]
[null,null,"first","3.1","Документ1"]
[null,null,"end","Добавить документ"]
[]
[null,null,null,"4. Периодичность"]
[null,null,null,"4.1","Периодичность"]
[null,null,null,null,"Мониторинги(прошедшие и плановые)","Дата начала","Дата окончания","Согласно (приказ, постановление, письмо)"]
[null,null,"first","4.2.1","Мониторинг1"]
[null,null,"end","Добавить мониторинг"]
[]
[null,null,null,"5. Состав шаблона"]
[null,null,null,null,"Лист","Последняя дата изменений эскиза","Состояние листа","Наименование витрины для листа","Комментарии"]
[null,null,"first","5.1.1"]
[null,null,"Удалить","5.1.2"]
[null,null,"Удалить","5.1.3"]
[null,null,"Удалить","5.1.4"]
[null,null,"Удалить","5.1.5"]
[null,null,"Удалить","5.1.6"]
[null,null,"Удалить","5.1.7"]
[null,null,"Удалить","5.1.8"]
[null,null,"Удалить","5.1.9"]
[null,null,"Удалить","5.1.10"]
[null,null,"Удалить","5.1.11"]
[null,null,"Удалить","5.1.12"]
[null,null,"Удалить","5.1.13"]
[null,null,"Удалить","5.1.14"]
[null,null,"Удалить","5.1.15"]
[null,null,"Удалить","5.1.16"]
[null,null,"Удалить","5.1.17"]
[null,null,"end","Добавить лист"]
[]
[null,null,null,"6. Сроки и даты"]
[null,null,null,"6.1.1","Даты получения последних эскизов, от экспертов"]
[null,null,null,"6.1.2","Даты отправки шаблона на проверку"]
[null,null,null,"6.1.3","Предполагаемый срок сдачи шаблона в эксплуатацию"]
[]
[null,null,null,"7. Версии"]
[null,null,null,null,"Версия","Отличия от предыдущей"]
[null,null,"first","7.1"]
[null,null,"end","Добавить версию"]
[]
[null,null,null,"8. Дополнительно"]
[null,null,null,"8.1","Аналогичные(\"похожие\") шаблоны"]
[null,null,null,"8.2","Особенности шаблона"]
[null,null,null,"8.3","Модуль на основе данного шаблона"]
[null,null,null,"8.4","Процедуры загрузки данных в витрины"]